fUST/lending_fUST_20240106
["ID","MTS","AMOUNT","RATE_DAILY","PERIOD"]
[310353524,1704501038388,-5043.64397447,0.00026727,2]
[310353526,1704501038398,-155.35943801,0.00026897,2]
[310353528,1704501038407,-1029.73603327,0.00026986,2]
[310353530,1704501038416,-483.78964083,0.00026996,2]
[310353532,1704501038425,-242.80060642,0.00026996,2]
[310353534,1704501038434,-500.0,0.00026996,2]
[310353536,1704501038443,-500.0,0.00026996,2]
[310353537,1704501038452,-395.39823691,0.00026996,2]
[310353539,1704501038461,-500.0,0.00026996,2]
[310353542,1704501038471,-500.0,0.00026996,2]
[310353543,1704501038479,-305.51116264,0.00026996,2]
[310353545,1704501038489,-500.0,0.00026996,2]
[310353548,1704501038498,-202.29402595,0.00026996,2]
[310353549,1704501038507,-814.276464,0.00026997,2]
[310353552,1704501038518,-814.276464,0.00026997,2]
[310353554,1704501038527,-917.517102,0.00026997,2]
[310353556,1704501038536,-917.517102,0.00026997,2]
[310353558,1704501038545,-341.94838101,0.00026997,2]
[310353560,1704501038556,-533.38069631,0.00026997,2]
[310353562,1704501038565,-3827.77185463,0.00026997,2]
[310353564,1704501038574,-297.85225266,0.00026997,2]
[310353566,1704501038583,-18847.36572562,0.00026997,2]
[310353568,1704501038593,-154.78330338,0.00026997,2]
[310353570,1704501038602,-154.78330338,0.00026997,2]
[310353572,1704501038612,-1032.95587979,0.00026997,2]
[310353574,1704501038621,-154.78330338,0.00026997,2]
[310353576,1704501038632,-1522.21245058,0.00026997,2]
[310353578,1704501038641,-200.0,0.00026997,2]
[310353580,1704501038650,-163.5934,0.00026998,2]
[310353582,1704501038660,-221.7827657,0.00026998,2]
[310353584,1704501038670,-155.25015242,0.00026998,2]
[310353586,1704501038679,-196.43819096,0.00026998,2]
[310353588,1704501038688,-332.64183827,0.00026998,2]
[310353590,1704501038697,-2525.35219268,0.00026998,2]
[310353592,1704501038708,-641.65330945,0.00026998,2]
[310353594,1704501038717,-327.87853141,0.00026998,2]
[310353596,1704501038728,-175.08476383,0.00026998,2]
[310353598,1704501038737,-4139.13435,0.00026998,2]
[310353600,1704501038746,-156.12974704,0.00026998,2]
[310353602,1704501038755,-524.11542461,0.00026998,2]
[310353604,1704501038764,-159.28975446,0.00026998,2]
[310353606,1704501038774,-156.56688897,0.00026998,2]
[310353608,1704501038784,-297.9940215,0.00026998,2]
[310353610,1704501038793,-3614.81967988,0.00026998,2]
[310353612,1704501038803,-282.97049745,0.00026998,2]
[310353614,1704501038813,-2451.65673495,0.00026999,2]
[310353616,1704501038823,-300.0,0.00027,2]
[310353618,1704501038833,-155.5228318,0.00028,2]
[310353620,1704501038843,-280.0,0.00028262,15]
[310353622,1704501038853,-312.6,0.000288,2]
[310353624,1704501038863,-3658.87774128,0.00029,2]
[310353626,1704501038873,-155.0,0.00029,2]
[310353628,1704501038882,-218.23466,0.00029,2]
[310353630,1704501038891,-151.0,0.00029,2]
[310353632,1704501038900,-151.0,0.00029,2]
[310353634,1704501038910,-814.276464,0.00029,2]
[310353637,1704501038920,-814.276464,0.00029,2]
[310353639,1704501038929,-917.517102,0.00029,2]
[310353641,1704501038938,-917.517102,0.00029,2]
[310353643,1704501038947,-620.3830444,0.00029368,2]
[310353645,1704501038956,-788.97901961,0.000297,2]
[310353647,1704501038965,-496.33210896,0.000297,5]
[310353649,1704501038975,-154.78330338,0.0003,2]
[310353651,1704501038985,-351.0,0.0003,2]
[310353664,1704501039099,-3112.4595361,0.00030137,2]
[310353666,1704501039109,-155.0,0.0003037,2]
[310353668,1704501039118,-151.0,0.00030386,2]
[310353670,1704501039127,-620.01915222,0.00030837,2]
[310353672,1704501039136,-155.359438,0.00030848,2]
[310353674,1704501039145,-18141.75085782,0.00031,4]
[310353676,1704501039154,-151.0,0.00031,2]
[310353678,1704501039163,-151.0,0.00031,2]
[310353680,1704501039172,-814.276464,0.00031,2]
[310353682,1704501039181,-814.276464,0.00031,2]
[310353684,1704501039190,-917.517102,0.00031,2]
[310353686,1704501039199,-917.517102,0.00031,2]
[310353688,1704501039209,-7544.16505711,0.00031498,4]
[310353690,1704501039218,-155.0,0.0003174,2]
[310353692,1704501039227,-200.0,0.000324,4]
[310353694,1704501039236,-154.84515385,0.00033,4]
[310353696,1704501039246,-1000.0,0.00034,7]
[310353698,1704501039255,-151.0,0.00034057,2]
[310353700,1704501039264,-11917.24109727,0.000345,2]
[310353702,1704501039273,-151.0,0.000345,2]
[310353704,1704501039282,-151.0,0.000345,2]
[310353706,1704501039291,-814.276464,0.000345,2]
[310353708,1704501039300,-814.276464,0.000345,2]
[310353710,1704501039310,-917.517102,0.000345,2]
[310353712,1704501039319,-917.517102,0.000345,2]
[310353714,1704501039329,-1591.787136,0.00034521,2]
[310353716,1704501039338,-155.359438,0.00034798,2]
[310353718,1704501039348,-151.0,0.00034889,2]
[310353720,1704501039357,-151.0,0.00034889,2]
[310353723,1704501039366,-814.276464,0.00034889,2]
[310353725,1704501039375,-814.276464,0.00034889,2]
[310353727,1704501039384,-917.517102,0.00034889,2]
[310353729,1704501039394,-917.517102,0.00034889,2]
[310353731,1704501039402,-301.5,0.00034889,2]
[310353733,1704501039412,-301.5,0.00034889,2]
[310353735,1704501039421,-301.5,0.00034889,2]
[310353737,1704501039430,-301.5,0.00034889,2]
[310353739,1704501039439,-301.5,0.00034889,2]
[310353741,1704501039447,-301.5,0.00034889,2]
[310353743,1704501039457,-301.5,0.00034889,2]
[310353745,1704501039466,-301.5,0.00034889,2]
[310353746,1704501039477,-301.5,0.00034889,2]
[310353748,1704501039487,-301.5,0.00034889,2]
[310353750,1704501039495,-500.0,0.00034889,4]
[310353752,1704501039504,-217.54658742,0.00034889,4]
[310353754,1704501039514,-500.0,0.00034889,4]
[310353757,1704501039523,-470.92472874,0.00034889,4]
[310353758,1704501039532,-500.0,0.00034889,4]
[310353760,1704501039542,-416.38403146,0.00034889,4]
[310353762,1704501039552,-229.92816067,0.00034889,4]
[310353765,1704501039562,-562.2880236,0.00034889,7]
[310353766,1704501039571,-500.0,0.00034889,7]
[310353768,1704501039580,-193.13189037,0.00034889,7]
[310353770,1704501039589,-437.9568964,0.00034889,7]
[310353772,1704501039598,-590.84252049,0.00034889,4]
[310353774,1704501039607,-500.0,0.00034889,7]
[310353777,1704501039617,-500.0,0.00034889,4]
[310353780,1704501039638,-500.0,0.00034889,4]
[310353782,1704501039648,-500.0,0.00034889,4]
[310353783,1704501039658,-500.0,0.00034889,7]
[310353784,1704501039668,-500.0,0.00034889,4]
[310353785,1704501039677,-500.0,0.00034889,7]
[310353786,1704501039687,-500.0,0.00034889,7]
[310353787,1704501039697,-500.0,0.00034889,7]
[310353788,1704501039707,-500.0,0.00034889,4]
[310353789,1704501039716,-500.0,0.00034889,4]
[310353790,1704501039726,-499.99999999,0.00034889,4]
[310353791,1704501039736,-290.27378449,0.00034889,7]
[310353792,1704501039746,-500.0,0.00034889,7]
[310353793,1704501039755,-500.0,0.00034889,7]
[310353794,1704501039765,-276.72051946,0.00034889,7]
[310353795,1704501039775,-479.13337198,0.00034889,7]
[310353796,1704501039784,-500.0,0.00034889,7]
[310353797,1704501039794,-220.80047958,0.0003489,3]
[310353798,1704501039805,-540783.09746109,0.0003489,2]
[310353799,1704501039823,-95751.36129114,0.0003489,2]
[310353946,1704501041219,-738.36329364,0.0003488,3]
[310353951,1704501041259,-9518.25670636,0.0003488,3]
[310353953,1704501041268,-56712.08159744,0.0003489,2]
[310354165,1704501043125,-3131.2496151,0.0003489,2]
[310356642,1704501185999,-154.78330338,0.00023355,2]
[310356643,1704501186021,-154.79876161,0.00023356,2]
[310356644,1704501186046,-154.99984842,0.00023358,2]
[310356645,1704501186067,-50.41808659,0.00023358,2]
[310356646,1704501254941,-941.52786815,0.00023239,2]
[310356647,1704501254965,-13678.83620673,0.00023356,2]
[310356648,1704501254987,-300.99259591,0.00023357,2]
[310356649,1704501255008,-10484.0225358,0.00023357,2]
[310356650,1704501255029,-144.7923262,0.00023358,2]
[310356651,1704501255051,-342.0768725,0.00023358,2]
[310356652,1704501255074,-3827.77185463,0.00023358,2]
[310356653,1704501255099,-297.85225266,0.00023358,2]
[310356654,1704501255120,-200.0,0.00023358,2]
[310356655,1704501255144,-1522.21245058,0.00023358,2]
[310356656,1704501255165,-154.78330338,0.00023358,2]
[310356657,1704501255300,-533.57920432,0.00023358,2]
[310356658,1704501255322,-4423.55252914,0.00023358,2]
[310356659,1704501330998,-170.26544559,0.00023121,2]
[310356660,1704501331021,-26389.64216715,0.00023122,2]
[310356661,1704501331047,-154.78330338,0.00023355,2]
[310356662,1704501331069,-1573.7077599,0.00023356,2]
[310356663,1704501331090,-669.87942445,0.00023356,2]
[310356664,1704501331111,-342.0768725,0.00023356,2]
[310356665,1704501331132,-265.20914203,0.00023356,2]
[310356666,1704501331154,-399.57520496,0.00023356,2]
[310356667,1704501331331,-154.78330338,0.00023356,2]
[310356668,1704501331356,-466.32790841,0.00023356,2]
[310356669,1704501331378,-6200.74946825,0.00023356,2]
[310356670,1704501539959,-260.66251494,0.00021019,2]
[310356671,1704501539991,-146.50468817,0.0002102,2]
[310356672,1704501540082,-8.30953476,0.0002102,2]
[310356673,1704501544064,-294.97274399,0.00021019,2]
[310356674,1704501544308,-6.01985192,0.00021019,2]
[310356675,1704501601046,-5000.0,0.00021019,2]
[310356676,1704501601308,-5000.0,0.00021019,2]
[310356677,1704501601439,-5000.0,0.00021019,2]
[310356678,1704501601566,-3847.36572562,0.00021019,2]
[310356679,1704501603181,342.0768725,0.00021019,2]
[310356680,1704501605349,-1491.76820157,0.00021019,2]
[310356681,1704501605524,-30.44424901,0.00021019,2]
[310356682,1704501605554,-154.78330338,0.00021019,2]
[310356683,1704501605588,1458.22828649,0.00021019,2]
[310356684,1704501605644,-1643.45583888,0.00021019,2]
[310356685,1704501605791,-726.08772926,0.00021019,2]
[310356686,1704501607876,533.57920432,0.00021019,2]
[310356687,1704501607914,200.0,0.00021019,2]
[310356688,1704501609875,297.85225266,0.00021019,2]
[310356689,1704501612838,-1012.29676219,0.00021019,2]
[310356690,1704501613035,-20.6591176,0.00021019,2]
[310356691,1704501621353,-154.78330338,0.00021019,2]
[310356692,1704501621383,-1497.48770032,0.00021019,2]
[310356693,1704501621476,-33.7198164,0.00021019,2]
[310356694,1704501621507,-342.0768725,0.00021019,2]
[310356695,1704501621598,1276.4743148,0.00021019,2]
[310356696,1704501621632,-1987.50633875,0.00021019,2]
[310356697,1704501621746,-563.79120108,0.00021019,2]
[310356698,1704501622708,1423.71513767,0.00021019,2]
[310356699,1704501622737,368.28075512,0.00021019,2]
[310356700,1704501622766,368.28075512,0.00021019,2]
[310356701,1704501622794,552.51537706,0.00021019,2]
[310356702,1704501622824,552.51537706,0.00021019,2]
[310356703,1704501623038,-5000.0,0.00021019,2]
[310356704,1704501623150,-1441.91679808,0.00021019,2]
[310356705,1704501623900,200.0,0.00021019,2]
[310356706,1704501625855,297.85225266,0.00021019,2]
[310356707,1704501628053,-500.84516329,0.00021019,2]
[310356708,1704501628317,-10.22132986,0.00021019,2]
[310356709,1704501628522,490.62383343,0.00021019,2]
[310356710,1704501628834,-542.33204636,0.00021019,2]
[310356711,1704501639578,-334.60572675,0.00021019,2]
[310356712,1704501639787,-6.8286883,0.00021019,2]
[310356713,1704501641179,154.78330338,0.00021019,2]
[310356714,1704501644047,-3751.21641754,0.00021019,2]
[310356715,1704501644349,-76.55543709,0.00021019,2]
[310356716,1704501644377,-297.85225266,0.00021019,2]
[310356717,1704501644708,1032.95587979,0.00021019,2]
[310356718,1704501645912,200.0,0.00021019,2]
[310356719,1704501659577,-243.92405325,0.00021019,2]
[310356720,1704501659731,-4.9780419,0.00021019,2]
[310356721,1704501659860,238.94601135,0.00021019,2]
[310356722,1704501659888,58.90624131,0.00021019,2]
[310356723,1704501663974,-3751.21641754,0.00021019,2]
[310356724,1704501664191,-76.55543709,0.00021019,2]
[310356725,1704501664657,396.20115761,0.00021019,2]
[310356726,1704501665913,200.0,0.00021019,2]
[310356727,1704501676312,-334.33233546,0.00021019,2]
[310356728,1704501676560,-6.82310889,0.00021019,2]
[310356729,1704501682437,-3741.59840372,0.00021019,2]
[310356730,1704501682593,-76.3591511,0.00021019,2]
[310356732,1704501835084,201.0,0.00027,7]
[310356733,1704502039090,-176.221835,0.0002187,2]
[310356734,1704502039112,-184.912724,0.00021918,2]
[310356735,1704502039134,-176.221835,0.00022077,2]
[310356736,1704502039154,-10852.64074307,0.00022144,2]
[310356738,1704502156102,-13253.80674443,0.00022144,2]
[310356739,1704502156121,-362.88337506,0.00022516,2]
[310356740,1704502156140,-160.57291482,0.00022516,2]
[310356741,1704502156159,-154.79876161,0.00023352,2]
[310356742,1704502156180,-6353.58641235,0.00023353,2]
[310356743,1704502156199,-13686.01748109,0.00023354,2]
[310356770,1704502232242,-23101.36578643,0.00023354,2]
[310356772,1704502232252,-164.74006432,0.00023355,2]
[310356774,1704502232262,-17369.61951597,0.00023355,2]
[310356776,1704502232272,-7294.37153461,0.00023356,2]
[310356778,1704502232281,-154.78330338,0.00023356,2]
[310356780,1704502232291,-4783.4316111,0.00023356,2]
[310356782,1704502232301,-298.3845753,0.00023356,2]
[310356784,1704502232310,-304.37864938,0.00023356,2]
[310356786,1704502232320,-249.95281177,0.00023356,2]
[310356788,1704502232329,-1472.87546295,0.00023357,2]
[310356789,1704502232338,-1147.84267965,0.00023357,2]
[310357218,1704502241533,-2742.94524766,0.00023357,2]
[310357220,1704502241544,-2692.31214738,0.00023357,2]
[310357222,1704502241553,-1158.05634497,0.00024,2]
[310357223,1704502241563,-525.26594965,0.00026,2]
[310357225,1704502241572,-312.6,0.000288,2]
[310357227,1704502241581,-151.0,0.00030593,2]
[310357229,1704502241591,-309.78317652,0.00030985,4]
[310357231,1704502241600,-1735.30351573,0.00030985,4]
[310357233,1704502241610,-360.177092,0.00030986,2]
[310357236,1704502241620,-155.06856509,0.00030986,2]
[310357237,1704502241629,-2632.81131618,0.00030988,4]
[310357239,1704502241640,-1366.60813306,0.00030989,2]
[310357701,1704502246646,-1742.82237472,0.00030989,2]
[310357702,1704502246658,-1548.18461811,0.00030989,2]
[310357703,1704502246667,-7016.33133889,0.0003099,3]
[310357859,1704502560780,380.34006582,0.00021796,4]
[310357861,1704503248093,-271.64702739,0.00021762,2]
[310357862,1704503248113,-859.93471429,0.00021762,2]
[310357863,1704503248134,-154.78330338,0.00021763,2]
[310357864,1704503248154,-5946.99696762,0.00021763,2]
[310357865,1704503248175,-198.63264518,0.00021763,2]
[310357866,1704503248196,-2091.01888054,0.00021764,2]
[310357867,1704503248217,-194.60170409,0.00021829,2]
[310357874,1704503357089,-55.39829591,0.00021829,2]
[310357875,1704503357114,-166.6666669,0.00021918,2]
[310357876,1704503357139,-176.221835,0.00022139,2]
[310357877,1704503357162,-1464.84555445,0.00023249,2]
[310357878,1704503357187,-319.93042786,0.00023354,2]
[310357879,1704503357213,-2821.86678474,0.00023998,2]
[310357880,1704503357238,-2482.39965936,0.00025,2]
[310357881,1704503357263,-2564.67966543,0.0002598,2]
[310357882,1704503367103,-22335.32033457,0.0002598,2]
[310357883,1704503367129,-202.563735,0.0002676,2]
[310357884,1704503367155,-4437.38393043,0.00026998,2]
[310358049,1704503438606,-2204.50374427,0.00026998,2]
[310358057,1704503438676,-902.27738241,0.00026998,2]
[310358059,1704503438686,-333.37930055,0.00027898,2]
[310358062,1704503438707,-4139.72516863,0.00027898,2]
[310358065,1704503438718,-312.6,0.000288,2]
[310358067,1704503438728,-186.59695711,0.00028889,2]
[310358069,1704503438737,-172.52054461,0.00029448,2]
[310358071,1704503438746,-8519.401131,0.0002979,7]
[310358073,1704503438756,-351.0,0.0003,2]
[310358075,1704503438765,-154.78330338,0.00030136,2]
[310358077,1704503438775,-3112.4595361,0.00030137,2]
[310358079,1704503438784,-155.25282947,0.0003089,2]
[310358081,1704503438793,-8909.5287127,0.0003099,4]
[310358083,1704503438803,-2960.14551134,0.0003099,4]
[310358085,1704503438812,-168.87452595,0.0003099,4]
[310358087,1704503438822,-995.65700895,0.00030998,4]
[310358089,1704503438831,-782.33052525,0.00030998,4]
[310358091,1704503438841,-169.10616385,0.00030998,2]
[310358093,1704503438851,-171.28143904,0.00030998,4]
[310358095,1704503438861,-269.25366734,0.00030998,2]
[310358097,1704503438871,-577.64428043,0.00030998,2]
[310358099,1704503438881,-8569.565465,0.00030998,4]
[310358101,1704503438890,-251.22291974,0.00030998,4]
[310358103,1704503438899,-365.03759451,0.00030998,4]
[310358105,1704503438909,-1287.50676832,0.00030998,4]
[310358107,1704503438918,-198.5176667,0.00030998,4]
[310358109,1704503438927,-1147.44248666,0.00030998,4]
[310358111,1704503438937,-154.93795059,0.00030998,4]
[310358113,1704503438946,-64810.61954,0.00030999,2]
[310358115,1704503438956,-2805.44527708,0.00030999,4]
[310358117,1704503438965,-301.5,0.00030999,2]
[310358119,1704503438978,-301.5,0.00030999,2]
[310358121,1704503438987,-301.5,0.00030999,2]
[310358123,1704503438997,-301.5,0.00030999,2]
[310358125,1704503439007,-483.78964082,0.00030999,2]
[310358127,1704503439016,-500.0,0.00030999,2]
[310358129,1704503439026,-500.0,0.00030999,2]
[310358131,1704503439036,-282.404203,0.00030999,2]
[310358133,1704503439046,-591.23627717,0.00030999,2]
[310358136,1704503439056,-500.0,0.00030999,2]
[310358138,1704503439065,-103841.88730562,0.00031,4]
[310358140,1704503439074,-11816.76435733,0.00032,10]
[310358142,1704503439084,-620.01915222,0.0003201,2]
[310358144,1704503439092,-178.5431189,0.00032603,2]
[310358146,1704503439101,-155.25282945,0.00032818,2]
[310358148,1704503439110,-200.0,0.000329,4]
[310358150,1704503439120,-154.84515385,0.00033,4]
[310358152,1704503439129,-186.59695711,0.00033889,2]
[310358154,1704503439138,-1000.0,0.00034,7]
[310358156,1704503439147,-870.58937829,0.00034,7]
[310358158,1704503439157,-1393.709427,0.00034,2]
[310358160,1704503439167,-11917.24109727,0.000345,2]
[310358162,1704503439177,-151.0,0.00034517,2]
[310358164,1704503439187,-1737.946944,0.00034521,2]
[310358166,1704503439196,-1567.18309758,0.00034726,4]
[310358168,1704503439206,-155.25282945,0.00034745,2]
[310358170,1704503439215,-1000.0,0.00034756,2]
[310358172,1704503439224,-461.80315225,0.00034789,7]
[310358174,1704503439234,-500.0,0.00034789,7]
[310358176,1704503439244,-500.0,0.00034789,7]
[310358178,1704503439255,-318.42720788,0.00034789,7]
[310358180,1704503439265,-500.0,0.00034789,4]
[310358182,1704503439275,-500.0,0.00034789,4]
[310358184,1704503439284,-500.0,0.00034789,4]
[310358187,1704503439294,-217.54658742,0.00034789,4]
[310358188,1704503439304,-470.92472874,0.00034789,4]
[310358191,1704503439314,-229.92816067,0.00034789,4]
[310358193,1704503439324,-500.0,0.00034789,4]
[310358195,1704503439333,-500.0,0.00034789,4]
[310358197,1704503439344,-590.84252049,0.00034789,4]
[310358199,1704503439353,-416.38403146,0.00034789,4]
[310358200,1704503439362,-500.0,0.00034789,4]
[310358203,1704503439372,-500.0,0.00034789,4]
[310358205,1704503439382,-500.0,0.00034789,4]
[310358207,1704503439391,-500.0,0.00034789,4]
[310358209,1704503439402,-301.5,0.00034789,2]
[310358211,1704503439411,-301.52,0.00034789,2]
[310358213,1704503439420,-301.5,0.00034789,2]
[310358215,1704503439430,-301.5,0.00034789,2]
[310358217,1704503439439,-220.80047958,0.0003479,3]
[310358219,1704503439448,-276000.0,0.0003479,2]
[310358221,1704503439457,-189.0,0.00034795,2]
[310358223,1704503439467,-1000.0,0.00034845,2]
[310358225,1704503439476,-611.44327358,0.00034889,4]
[310358227,1704503439485,-3083.84649116,0.00034889,4]
[310358229,1704503439494,-617.16245448,0.00034889,2]
[310358231,1704503439505,-58811.11163511,0.0003489,14]
[310358233,1704503439514,-544.68927854,0.000349,2]
[310358235,1704503439524,-154.90705577,0.00034998,4]
[310358237,1704503439534,-154.8915759,0.00034998,2]
[310358239,1704503439543,-154.93802479,0.00034998,4]
[310358241,1704503439552,-162.4738658,0.00034998,4]
[310358243,1704503439561,-227.3193674,0.00034998,4]
[310358245,1704503439571,-343.43501932,0.00034998,4]
[310358247,1704503439580,-2097.15281013,0.00034998,4]
[310358249,1704503439590,-2067.23046819,0.00034998,4]
[310358251,1704503439602,-394.96400341,0.00034998,4]
[310358253,1704503439614,-2136.4611211,0.00034998,4]
[310358255,1704503439624,-1234.73871984,0.00034998,4]
[310358257,1704503439634,-172.14663598,0.00034998,4]
[310358259,1704503439644,-956.59592673,0.00034998,4]
[310358264,1704503439674,-641.51065897,0.00034998,4]
[310358266,1704503439683,-155.32708373,0.00034998,4]
[310358268,1704503439693,-903.21651068,0.00034998,4]
[310358270,1704503439703,-2888.78022856,0.00034998,2]
[310358272,1704503439712,-2033.26609225,0.00034998,4]
[310358274,1704503439722,-182.73211065,0.00034998,4]
[310358276,1704503439731,-158.15557148,0.00034998,4]
[310358278,1704503439740,-314.73171776,0.00034998,4]
[310358280,1704503439749,-552.52248839,0.00034998,4]
[310358282,1704503439759,-179.98010465,0.00034998,4]
[310358284,1704503439768,-189.94996206,0.00034998,2]
[310358286,1704503439778,-365.29294367,0.00034998,2]
[310358288,1704503439787,-250.0,0.00034998,2]
[310358290,1704503439796,-250.0,0.00034998,2]
[310358292,1704503439806,-151.0,0.00034998,2]
[310358294,1704503439815,-151.0,0.00034998,2]
[310358296,1704503439824,-2643.59735401,0.00034999,2]
[310358298,1704503439834,-590.61742421,0.00035,2]
[310358300,1704503439844,-7797.08454076,0.00035,4]
[310358302,1704503439853,-1069.63,0.00035,2]
[310358304,1704503439862,-409.89624,0.00035,30]
[310358306,1704503439872,-385.05739396,0.00035,4]
[310358308,1704503439881,-2604.51753734,0.00035,2]
[310358310,1704503439891,-501.12992494,0.00035,7]
[310358312,1704503439901,-155.51652997,0.00035,2]
[310358314,1704503439910,-189.0,0.00035,2]
[310358316,1704503439920,-40844.50652294,0.00035,7]
[310358318,1704503439930,-500.5571792,0.00035,5]
[310358320,1704503439939,-250.0,0.00035299,2]
[310358322,1704503439948,-250.0,0.00035299,2]
[310358324,1704503439957,-151.0,0.00035299,2]
[310358326,1704503439966,-151.0,0.00035299,2]
[310358328,1704503439975,-734.013682,0.00035299,2]
[310358330,1704503439984,-734.013682,0.00035299,2]
[310358332,1704503439994,-651.421171,0.00035299,2]
[310358334,1704503440003,-651.421171,0.00035299,2]
[310358336,1704503440012,-5000.0,0.00035299,7]
[310358338,1704503440022,-291.59470145,0.00035405,2]
[310358340,1704503440030,-212.4475682,0.00035405,2]
[310358342,1704503440040,-194.17699436,0.00035405,2]
[310358344,1704503440049,-392.0,0.00035452,2]
[310358346,1704503440058,-153.0,0.00035589,2]
[310358348,1704503440067,-153.0,0.00035589,2]
[310358350,1704503440077,-153.0,0.00035589,2]
[310358352,1704503440087,-153.0,0.00035589,2]
[310358354,1704503440097,-153.0,0.00035589,2]
[310358356,1704503440106,-153.0,0.00035589,2]
[310358358,1704503440115,-193.13189037,0.00035615,7]
[310358360,1704503440124,-500.0,0.00035615,7]
[310358362,1704503440133,-437.9568964,0.00035615,7]
[310358364,1704503440143,-500.0,0.00035615,7]
[310358366,1704503440152,-562.2880236,0.00035615,7]
[310358368,1704503440161,-500.0,0.00035615,7]
[310358370,1704503440171,-500.0,0.00035615,7]
[310358372,1704503440180,-500.0,0.00035615,7]
[310358387,1704503440308,-500.0,0.00035615,7]
[310358389,1704503440318,-323.85704347,0.00035616,3]
[310358392,1704503440328,-500.0,0.00035616,3]
[310358394,1704503440337,-545.94,0.00035616,3]
[310358396,1704503440348,-500.0,0.00035616,3]
[310358397,1704503440357,-500.0,0.00035616,3]
[310358400,1704503440366,-500.0,0.00035616,3]
[310358402,1704503440375,-500.0,0.00035616,3]
[310358404,1704503440384,-780.42,0.00035616,3]
[310358405,1704503440393,-500.0,0.00035616,3]
[310358408,1704503440403,-500.0,0.00035616,3]
[310358410,1704503440412,-10865.57,0.00035616,3]
[310358412,1704503440421,-500.0,0.00035616,3]
[310358413,1704503440430,-1633.64,0.00035616,3]
[310358415,1704503440439,-500.0,0.00035616,3]
[310358418,1704503440449,-1039.98,0.00035616,3]
[310358420,1704503440458,-500.0,0.00035616,3]
[310358421,1704503440467,-500.0,0.00035616,3]
[310358424,1704503440476,-323.79737193,0.00035616,2]
[310358426,1704503440485,-607.47773492,0.00035616,2]
[310358427,1704503440495,-150.0,0.000357,2]
[310358429,1704503440504,-500.0,0.00035787,2]
[310358431,1704503440513,-500.0,0.00035787,2]
[310358433,1704503440522,-500.0,0.00035787,2]
[310358435,1704503440532,-1737.946944,0.00035798,2]
[310358437,1704503440541,-281.31828823,0.00035886,4]
[310358439,1704503440552,-252.659991,0.00035888,4]
[310358441,1704503440561,-251.00812275,0.00035889,4]
[310358444,1704503440571,-500.0,0.0003589,3]
[310358447,1704503440580,-545.94,0.0003589,3]
[310358449,1704503440589,-500.0,0.0003589,3]
[310358452,1704503440599,-500.0,0.0003589,3]
[310358455,1704503440609,-500.0,0.0003589,3]
[310358457,1704503440618,-780.42,0.0003589,3]
[310358459,1704503440626,-500.0,0.0003589,3]
[310358461,1704503440635,-500.0,0.0003589,3]
[310358463,1704503440646,-10865.57,0.0003589,3]
[310358465,1704503440655,-500.0,0.0003589,3]
[310358467,1704503440664,-1633.64,0.0003589,3]
[310358469,1704503440673,-500.0,0.0003589,3]
[310358471,1704503440682,-1039.98,0.0003589,3]
[310358473,1704503440691,-500.0,0.00036038,2]
[310358475,1704503440700,-500.0,0.00036038,2]
[310358477,1704503440709,-500.0,0.00036038,2]
[310358479,1704503440718,-500.0,0.00036038,2]
[310358481,1704503440727,-500.0,0.00036038,2]
[310358483,1704503440736,-500.0,0.00036038,2]
[310358485,1704503440745,-500.0,0.00036038,2]
[310358487,1704503440754,-500.0,0.00036038,2]
[310358489,1704503440763,-500.0,0.00036038,2]
[310358491,1704503440772,-500.0,0.00036038,2]
[310358493,1704503440781,-500.0,0.00036038,2]
[310358495,1704503440789,-179.38676085,0.00036038,2]
[310358497,1704503440798,-156.1324687,0.00036164,4]
[310358499,1704503440807,-500.0,0.00036164,3]